fUSD/lending_fUSD_20250606
["ID","MTS","AMOUNT","RATE_DAILY","PERIOD"]
[364645342,1749177040342,-480.0,0.00030164,7]
[364645344,1749177040352,-480.0,0.00030164,7]
[364645346,1749177040362,-480.0,0.00030164,7]
[364645348,1749177040372,-628.65,0.00030164,7]
[364645350,1749177040381,-740.06,0.00030164,7]
[364645352,1749177040391,-480.0,0.00030164,7]
[364645354,1749177040401,-823.59,0.00030164,7]
[364645356,1749177040410,-480.0,0.00030164,7]
[364645358,1749177040419,-480.0,0.00030164,7]
[364645359,1749177040428,-480.0,0.00030164,7]
[364645361,1749177040438,-446.41313456,0.00030164,7]
[364645364,1749177040448,-480.0,0.00030164,7]
[364645366,1749177040458,-480.0,0.00030164,7]
[364645368,1749177040468,-480.0,0.00030164,7]
[364645370,1749177040480,-741.7,0.00030164,7]
[364645372,1749177040490,-480.0,0.00030164,7]
[364645374,1749177040500,-198.33278657,0.00030164,7]
[364645375,1749177040509,-480.0,0.00030164,7]
[364645377,1749177040519,-480.0,0.00030164,7]
[364645379,1749177040528,-480.0,0.00030164,7]
[364645382,1749177040538,-1355.73,0.00030164,7]
[364645383,1749177040548,-764.55,0.00030164,7]
[364645386,1749177040558,-480.0,0.00030164,7]
[364645387,1749177040570,-480.0,0.00030164,7]
[364645390,1749177040582,-480.0,0.00030164,7]
[364645391,1749177040596,-480.0,0.00030164,7]
[364645394,1749177040607,-480.0,0.00030164,7]
[364645396,1749177040618,-451.66074109,0.00030164,7]
[364645398,1749177040628,-480.0,0.00030164,7]
[364645400,1749177040637,-842.17,0.00030164,7]
[364645402,1749177040647,-973.04,0.00030164,7]
[364645404,1749177040656,-1581.47,0.00030164,7]
[364645406,1749177040665,-480.0,0.00030164,7]
[364645408,1749177040675,-534.18957922,0.00030164,7]
[364645409,1749177040684,-500.0,0.00030164,2]
[364645411,1749177040694,-908.31,0.00030164,7]
[364645413,1749177040705,-480.0,0.00030164,7]
[364645415,1749177040715,-1192.03,0.00030164,7]
[364645416,1749177040725,-480.0,0.00030164,7]
[364645418,1749177040734,-480.0,0.00030164,7]
[364645420,1749177040744,-807.49,0.00030164,7]
[364645422,1749177040754,-368.29895283,0.00030164,7]
[364645424,1749177040764,-1628.42,0.00030164,7]
[364645426,1749177040773,-480.0,0.00030164,7]
[364645428,1749177040783,-1394.32,0.00030164,7]
[364645430,1749177040792,-480.0,0.00030164,7]
[364645431,1749177040801,-480.0,0.00030164,7]
[364645433,1749177040810,-788.38,0.00030164,7]
[364645435,1749177040820,-668.64,0.00030164,7]
[364645437,1749177040828,-480.0,0.00030164,7]
[364645439,1749177040838,-480.0,0.00030164,7]
[364645441,1749177040848,-1405.2,0.00030164,7]
[364645442,1749177040857,-480.0,0.00030164,7]
[364645444,1749177040866,-1150.64,0.00030164,7]
[364645446,1749177040876,-470.25051044,0.00030164,7]
[364645448,1749177040885,-480.0,0.00030164,7]
[364645450,1749177040894,-191.41619744,0.00030164,7]
[364645452,1749177040904,-480.0,0.00030164,7]
[364645453,1749177040914,-480.0,0.00030164,7]
[364645455,1749177040923,-1227.56,0.00030164,7]
[364645457,1749177040933,-480.0,0.00030164,7]
[364645459,1749177040943,-480.0,0.00030164,7]
[364645460,1749177040952,-286.99787943,0.00030164,7]
[364645462,1749177040962,-480.0,0.00030164,7]
[364645464,1749177040972,-811.08,0.00030164,7]
[364645466,1749177040982,-214.22939495,0.00030164,7]
[364645468,1749177040992,-480.0,0.00030164,7]
[364645470,1749177041002,-480.0,0.00030164,7]
[364645472,1749177041011,-480.0,0.00030164,7]
[364645474,1749177041021,-914.11,0.00030164,7]
[364645476,1749177041031,-480.0,0.00030164,7]
[364645477,1749177041040,-480.0,0.00030164,7]
[364645479,1749177041050,-526.38,0.00030164,7]
[364645481,1749177041060,-480.0,0.00030164,7]
[364645483,1749177041071,-515.6,0.00030164,7]
[364645485,1749177041080,-303.09674296,0.00030164,7]
[364645487,1749177041090,-480.0,0.00030164,7]
[364645489,1749177041099,-480.0,0.00030164,7]
[364645491,1749177041109,-480.0,0.00030164,7]
[364645492,1749177041119,-480.0,0.00030164,7]
[364645494,1749177041129,-1067.14,0.00030164,7]
[364645496,1749177041138,-480.0,0.00030164,7]
[364645498,1749177041148,-480.0,0.00030164,7]
[364645500,1749177041158,-480.0,0.00030164,7]
[364645502,1749177041167,-480.0,0.00030164,7]
[364645504,1749177041177,-480.0,0.00030164,7]
[364645506,1749177041187,-239.67482501,0.00030164,7]
[364645508,1749177041197,-480.0,0.00030164,7]
[364645510,1749177041206,-480.0,0.00030164,7]
[364645512,1749177041216,-625.03468781,0.00030164,7]
[364645514,1749177041226,-169.05031284,0.00030164,7]
[364645516,1749177041235,-480.0,0.00030164,7]
[364645517,1749177041245,-480.0,0.00030164,7]
[364645519,1749177041254,-242.51459523,0.00030164,7]
[364645521,1749177041264,-480.0,0.00030164,7]
[364645523,1749177041273,-625.14,0.00030164,7]
[364645525,1749177041283,-480.0,0.00030164,7]
[364645527,1749177041292,-485.54657176,0.00030164,7]
[364645529,1749177041302,-480.0,0.00030164,7]
[364645531,1749177041312,-648.33,0.00030164,7]
[364645532,1749177041322,-480.0,0.00030164,7]
[364645534,1749177041332,-355.64713621,0.00030164,7]
[364645536,1749177041341,-480.0,0.00030164,7]
[364645538,1749177041351,-850.77,0.00030164,7]
[364645540,1749177041360,-791.29,0.00030164,7]
[364645542,1749177041370,-480.0,0.00030164,7]
[364645543,1749177041380,-433.55154818,0.00030164,7]
[364645545,1749177041390,-480.0,0.00030164,7]
[364645547,1749177041399,-480.0,0.00030164,7]
[364645549,1749177041409,-480.0,0.00030164,7]
[364645551,1749177041419,-480.0,0.00030164,7]
[364645553,1749177041429,-806.48,0.00030164,7]
[364645555,1749177041438,-480.0,0.00030164,7]
[364645557,1749177041448,-480.0,0.00030164,7]
[364645559,1749177041458,-592.23,0.00030164,7]
[364645561,1749177041468,-480.0,0.00030164,7]
[364645563,1749177041479,-1254.2,0.00030164,7]
[364645565,1749177041488,-480.0,0.00030164,7]
[364645567,1749177041498,-480.0,0.00030164,7]
[364645569,1749177041507,-480.0,0.00030164,7]
[364645570,1749177041518,-986.48,0.00030164,7]
[364645572,1749177041528,-480.0,0.00030164,7]
[364645574,1749177041538,-817.61,0.00030164,7]
[364645576,1749177041548,-480.0,0.00030164,7]
[364645578,1749177041557,-1408.03,0.00030164,7]
[364645580,1749177041567,-468.28013406,0.00030164,7]
[364645582,1749177041578,-483.40087319,0.00030164,7]
[364645584,1749177041587,-480.0,0.00030164,7]
[364645586,1749177041597,-480.0,0.00030164,7]
[364645588,1749177041607,-480.0,0.00030164,7]
[364645589,1749177041616,-480.0,0.00030164,7]
[364645591,1749177041626,-480.0,0.00030164,7]
[364645593,1749177041636,-1052.92,0.00030164,7]
[364645595,1749177041646,-488.67633111,0.00030164,7]
[364645597,1749177041656,-480.0,0.00030164,7]
[364645599,1749177041666,-480.0,0.00030164,7]
[364645601,1749177041675,-518.71,0.00030164,7]
[364645603,1749177041684,-1251.23,0.00030164,7]
[364645605,1749177041694,-950.42,0.00030164,7]
[364645607,1749177041706,-480.0,0.00030164,7]
[364645609,1749177041717,-489.93807025,0.00030164,7]
[364645610,1749177041727,-532.62,0.00030164,7]
[364645612,1749177041736,-480.0,0.00030164,7]
[364645614,1749177041747,-480.0,0.00030164,7]
[364645616,1749177041756,-480.0,0.00030164,7]
[364645618,1749177041766,-1131.09,0.00030164,7]
[364645620,1749177041776,-749.27,0.00030164,7]
[364645622,1749177041786,-290.60670125,0.00030164,7]
[364645624,1749177041796,-480.0,0.00030164,7]
[364645626,1749177041805,-480.0,0.00030164,7]
[364645628,1749177041815,-485.43958261,0.00030164,7]
[364645630,1749177041824,-480.0,0.00030164,7]
[364645632,1749177041835,-480.0,0.00030164,7]
[364645634,1749177041845,-480.0,0.00030164,7]
[364645636,1749177041855,-480.0,0.00030164,7]
[364645638,1749177041864,-467.59472181,0.00030164,7]
[364645640,1749177041874,-740.83,0.00030164,7]
[364645642,1749177041883,-480.0,0.00030164,7]
[364645644,1749177041893,-1003.59,0.00030164,7]
[364645645,1749177041903,-480.0,0.00030164,7]
[364645647,1749177041913,-1215.68,0.00030164,7]
[364645649,1749177041923,-480.0,0.00030164,7]
[364645651,1749177041934,-1621.06,0.00030164,7]
[364645652,1749177041944,-751.53,0.00030164,7]
[364645654,1749177041954,-600.0,0.00030164,2]
[364645656,1749177041964,-485.21805506,0.00030164,7]
[364645658,1749177041974,-1558.92,0.00030164,7]
[364645659,1749177041985,-480.0,0.00030164,7]
[364645660,1749177041996,-636.31,0.00030164,7]
[364645661,1749177042006,-480.0,0.00030164,7]
[364645662,1749177042016,-480.0,0.00030164,7]
[364645663,1749177042027,-480.0,0.00030164,7]
[364645664,1749177042037,-600.63,0.00030164,7]
[364645665,1749177042047,-482.60664066,0.00030164,7]
[364645666,1749177042057,-486.49200386,0.00030164,7]
[364645667,1749177042067,-884.49,0.00030164,7]
[364645668,1749177042079,-1047.77,0.00030164,7]
[364645669,1749177042092,-480.0,0.00030164,7]
[364645670,1749177042102,-480.0,0.00030164,7]
[364645671,1749177042112,-480.0,0.00030164,7]
[364645672,1749177042122,-480.0,0.00030164,7]
[364645673,1749177042132,-480.0,0.00030164,7]
[364645674,1749177042143,-491.91,0.00030164,7]
[364645675,1749177042154,-509.58,0.00030164,7]
[364645676,1749177042165,-794.36,0.00030164,7]
[364645677,1749177042185,-480.0,0.00030164,7]
[364645678,1749177042196,-523.22,0.00030164,7]
[364645679,1749177042207,-480.0,0.00030164,7]
[364645680,1749177042217,-480.0,0.00030164,7]
[364645681,1749177042228,-1149.76,0.00030164,7]
[364645682,1749177042239,-480.0,0.00030164,7]
[364645683,1749177042249,-480.0,0.00030164,7]
[364645684,1749177042259,-480.0,0.00030164,7]
[364645685,1749177042271,-1043.18,0.00030164,7]
[364645686,1749177042281,-480.0,0.00030164,7]
[364645687,1749177042292,-762.76,0.00030164,7]
[364645688,1749177042302,-161.244144,0.00030164,7]
[364645689,1749177042313,-1740.95,0.00030164,7]
[364645690,1749177042324,-480.0,0.00030164,2]
[364645691,1749177042334,-482.64355542,0.00030164,7]
[364645692,1749177042345,-480.0,0.00030164,7]
[364645693,1749177042355,-3365.29,0.00030164,7]
[364645694,1749177042366,-660.68,0.00030164,7]
[364645695,1749177042376,-1178.87,0.00030164,7]
[364645696,1749177042387,-295.26025614,0.00030164,7]
[364645697,1749177042397,-938.66,0.00030164,7]
[364645698,1749177042407,-480.0,0.00030164,7]
[364645699,1749177042417,-492.15742642,0.00030164,7]
[364645700,1749177042428,-480.0,0.00030164,7]
[364645701,1749177042438,-868.9,0.00030164,7]
[364645702,1749177042449,-487.69988512,0.00030164,7]
[364645703,1749177042459,-11844.36,0.00030164,7]
[364645704,1749177042469,-480.0,0.00030164,7]
[364645705,1749177042479,-480.0,0.00030164,7]
[364645706,1749177042490,-1176.51,0.00030164,7]
[364645707,1749177042500,-494.6625354,0.00030164,7]
[364645708,1749177042510,-1788.91,0.00030164,7]
[364645709,1749177042520,-3743.16,0.00030164,7]
[364645710,1749177042532,-712.4,0.00030164,7]
[364645711,1749177042542,-1154.63,0.00030164,7]
[364645712,1749177042552,-1978.18,0.00030164,7]
[364645713,1749177042562,-742.64,0.00030164,7]
[364645714,1749177042572,-3446.9,0.00030164,7]
[364645715,1749177042582,-721.61,0.00030164,7]
[364645716,1749177042593,-1022.03356241,0.00030164,15]
[364645717,1749177042603,-1704.64,0.00030164,7]
[364645718,1749177042614,-3182.65,0.00030164,7]
[364645719,1749177042624,-958.23,0.00030164,7]
[364645720,1749177042634,-480.0,0.00030164,7]
[364645721,1749177042644,-480.0,0.00030164,7]
[364645722,1749177042655,-1670.05,0.00030164,7]
[364645723,1749177042665,-480.0,0.00030164,7]
[364645724,1749177042675,-2206.12,0.00030164,7]
[364645725,1749177042685,-480.0,0.00030164,7]
[364645726,1749177042695,-1690.22,0.00030164,7]
[364645727,1749177042708,-484.58735141,0.00030164,7]
[364645728,1749177042719,-480.0,0.00030164,7]
[364645729,1749177042731,-2000.57,0.00030164,7]
[364645730,1749177042743,-480.0,0.00030164,7]
[364645731,1749177042754,-943.99,0.00030164,7]
[364645732,1749177042764,-480.0,0.00030164,7]
[364645733,1749177042775,-480.0,0.00030164,7]
[364645734,1749177042786,-2158.97,0.00030164,7]
[364645735,1749177042796,-544.1,0.00030164,7]
[364645736,1749177042806,-962.09,0.00030164,7]
[364645737,1749177042816,-688.24,0.00030164,7]
[364645738,1749177042827,-516.94792997,0.00030164,7]
[364645739,1749177042837,-1240.24,0.00030164,7]
[364645740,1749177042846,-1891.69,0.00030164,7]
[364645741,1749177042856,-480.0,0.00030164,7]
[364645742,1749177042867,-1925.79,0.00030164,7]
[364645743,1749177042878,-5680.89,0.00030164,7]
[364645744,1749177042889,-1255.9,0.00030164,7]
[364645745,1749177042899,-155.912868,0.00030164,7]
[364645746,1749177042910,-1583.6,0.00030164,7]
[364645747,1749177042920,-801.89,0.00030164,7]
[364645748,1749177042930,-1120.74,0.00030164,7]
[364645749,1749177042940,-494.06567493,0.00030164,7]
[364645750,1749177042950,-505.32,0.00030164,7]
[364645751,1749177042960,-1519.98,0.00030164,7]
[364645752,1749177042972,-480.0,0.00030164,7]
[364645754,1749177042983,-3875.19,0.00030164,7]
[364645756,1749177042993,-480.0,0.00030164,7]
[364645757,1749177043003,-480.0,0.00030164,7]
[364645758,1749177043013,-2112.73,0.00030164,7]
[364645759,1749177043024,-1534.91,0.00030164,7]
[364645760,1749177043033,-1982.0,0.00030164,7]
[364645761,1749177043043,-155.683689,0.00030164,7]
[364645762,1749177043054,-497.46706187,0.00030164,7]
[364645763,1749177043064,-490.59617819,0.00030164,7]
[364645764,1749177043074,-463.39429358,0.00030164,7]
[364645765,1749177043084,-480.0,0.00030164,7]
[364645766,1749177043094,-185.9957717,0.00030164,7]
[364645767,1749177043104,-480.0,0.00030164,7]
[364645768,1749177043113,-480.0,0.00030164,7]
[364645769,1749177043123,-480.0,0.00030164,7]
[364645770,1749177043133,-480.0,0.00030164,7]
[364645771,1749177043143,-572.61,0.00030164,7]
[364645772,1749177043153,-1414.24,0.00030164,7]
[364645773,1749177043163,-572.61,0.00030164,7]
[364645774,1749177043173,-572.61,0.00030164,7]
[364645775,1749177043182,-9626.71,0.00030164,7]
[364645776,1749177043193,-1686.07,0.00030164,7]
[364645777,1749177043203,-1067.59,0.00030164,7]
[364645778,1749177043213,-480.0,0.00030164,7]
[364645779,1749177043223,-3603.08,0.00030164,7]
[364645780,1749177043233,-583.53205389,0.00030164,7]
[364645781,1749177043243,-854.39,0.00030164,7]
[364645782,1749177043253,-480.0,0.00030164,7]
[364645783,1749177043263,-480.0,0.00030164,7]
[364645784,1749177043273,-480.0,0.00030164,7]
[364645785,1749177043283,-480.0,0.00030164,7]
[364645786,1749177043293,-480.0,0.00030164,7]
[364645787,1749177043303,-1611.62,0.00030164,7]
[364645788,1749177043316,-1355.64,0.00030164,7]
[364645789,1749177043326,-480.0,0.00030164,7]
[364645790,1749177043337,-5002.39,0.00030164,7]
[364645791,1749177043347,-532.35,0.00030164,7]
[364645792,1749177043356,-1683.28,0.00030164,7]
[364645793,1749177043366,-480.0,0.00030164,7]
[364645794,1749177043376,-2059.38,0.00030164,7]
[364645795,1749177043387,-480.0,0.00030164,7]
[364645796,1749177043397,-482.94711404,0.00030164,7]
[364645797,1749177043631,-480.0,0.00030164,7]
[364645798,1749177043672,-462.7885579,0.00030164,7]
[364645799,1749177043682,-480.0,0.00030164,7]
[364645800,1749177043692,-705.44,0.00030164,7]
[364645801,1749177043702,-481.83692167,0.00030164,7]
[364645802,1749177043717,-4123.06,0.00030164,7]
[364645803,1749177043727,-152.750958,0.00030164,7]
[364645804,1749177043737,-485.77371778,0.00030164,7]
[364645805,1749177043747,-3557.43,0.00030164,7]
[364645806,1749177043757,-1000.0,0.00030164,7]
[364645807,1749177043767,-2922.25,0.00030164,7]
[364645808,1749177043776,-1039.15,0.00030164,7]
[364645809,1749177043787,-1245.91,0.00030164,7]
[364645810,1749177043797,-484.55676269,0.00030164,7]
[364645811,1749177043806,-756.62,0.00030164,7]
[364645812,1749177043815,-1774.26,0.00030164,7]
[364645813,1749177043825,-480.0,0.00030164,7]
[364645814,1749177043834,-228.35392832,0.00030164,2]
[364645815,1749177043844,-480.0,0.00030164,7]
[364645816,1749177043853,-1257.47,0.00030164,7]
[364645817,1749177043863,-4879.25,0.00030164,7]
[364645818,1749177043873,-491.86446412,0.00030164,7]
[364645819,1749177043882,-424.44492271,0.00030164,7]
[364645820,1749177043892,-631.91,0.00030164,7]
[364645821,1749177043901,-483.44105642,0.00030164,7]
[364645822,1749177043911,-1004.81,0.00030164,7]
[364645823,1749177043921,-1481.46,0.00030164,7]
[364645824,1749177043930,-1390.34,0.00030164,2]
[364645825,1749177043940,-480.0,0.00030164,7]
[364645826,1749177043950,-496.99596673,0.00030164,7]
[364645827,1749177043960,-4362.16,0.00030164,7]
[364645828,1749177043969,-480.9774484,0.00030164,2]
[364645829,1749177043979,-160.755081,0.00030164,7]
[364645830,1749177043989,-484.60386278,0.00030164,7]
[364645831,1749177043999,-480.0,0.00030164,7]
[364645832,1749177044010,-514.93,0.00030164,7]
[364645833,1749177044019,-480.0,0.00030164,7]
[364645834,1749177044029,-480.0,0.00030164,7]
[364645835,1749177044038,-1265.11,0.00030164,7]
[364645836,1749177044049,-480.0,0.00030164,7]
[364645837,1749177044058,-2267.74,0.00030164,7]
[364645838,1749177044068,-848.39,0.00030164,7]
[364645839,1749177044078,-1122.91,0.00030164,7]
[364645840,1749177044088,-607.09,0.00030164,7]
[364645841,1749177044097,-480.0,0.00030164,7]
[364645842,1749177044107,-17299.43,0.00030164,7]
[364645843,1749177044117,-2133.86,0.00030164,7]
[364645844,1749177044127,-480.0,0.00030164,7]
[364645845,1749177044137,-480.0,0.00030164,7]
[364645846,1749177044148,-2270.05,0.00030164,7]
[364645847,1749177044158,-5890.94,0.00030164,7]
[364645848,1749177044168,-943.63,0.00030164,7]
[364645849,1749177044178,-480.0,0.00030164,7]
[364645850,1749177044188,-480.0,0.00030164,7]
[364645851,1749177044198,-927.67,0.00030164,7]
[364645852,1749177044208,-1048.23,0.00030164,7]
[364645853,1749177044218,-480.0,0.00030164,7]
[364645854,1749177044227,-2053.75,0.00030164,7]
[364645855,1749177044237,-480.0,0.00030164,7]
[364645856,1749177044247,-480.0,0.00030164,7]
[364645857,1749177044256,-797.66,0.00030164,7]
[364645858,1749177044266,-483.7245068,0.00030164,7]
[364645859,1749177044275,-1916.82,0.00030164,7]
[364645860,1749177044284,-1786.7,0.00030164,7]
[364645861,1749177044294,-1305.67,0.00030164,7]
[364645862,1749177044304,-480.0,0.00030164,7]
[364645863,1749177044313,-668.71,0.00030164,7]
[364645864,1749177044323,-2130.78,0.00030164,7]
[364645865,1749177044543,-480.0,0.00030164,7]
[364645866,1749177044553,-480.0,0.00030164,7]
[364645867,1749177044563,-487.08964457,0.00030164,7]
[364645868,1749177044572,-485.94963205,0.00030164,7]
[364645869,1749177044581,-480.0,0.00030164,7]
[364645870,1749177044590,-480.0,0.00030164,7]
[364645871,1749177044600,-1821.03,0.00030164,7]
[364645872,1749177044609,-501.62187827,0.00030164,7]
[364645873,1749177044619,-480.0,0.00030164,7]
[364645874,1749177044628,-482.90681173,0.00030164,7]
[364645875,1749177044637,-480.0,0.00030164,7]
[364645876,1749177044647,-1363.64,0.00030164,7]
[364645877,1749177044656,-480.0,0.00030164,7]
[364645878,1749177044665,-11598.15,0.00030164,7]
[364645879,1749177044674,-480.0,0.00030164,7]
[364645880,1749177044684,-480.0,0.00030164,7]
[364645881,1749177044693,-480.0,0.00030164,7]
[364645882,1749177044704,-4986.98,0.00030164,7]
[364645883,1749177044717,-728.96,0.00030164,7]
[364645884,1749177044727,-972.86,0.00030164,7]
[364645885,1749177044737,-967.96,0.00030164,7]
[364645886,1749177044746,-309.72449409,0.00030164,7]
[364645887,1749177044757,-480.0,0.00030164,7]
[364645888,1749177044766,-609.33,0.00030164,7]
[364645889,1749177044775,-480.0,0.00030164,7]
[364645890,1749177044785,-480.0,0.00030164,7]
[364645891,1749177044795,-480.0,0.00030164,7]
[364645892,1749177044804,-480.0,0.00030164,7]
[364645893,1749177044814,-1354.55,0.00030164,7]
[364645894,1749177044823,-862.75,0.00030164,7]
[364645895,1749177044833,-10059.72,0.00030164,7]
[364645896,1749177044843,-1109.03,0.00030164,7]
[364645897,1749177044852,-480.0,0.00030164,7]
[364645898,1749177044862,-1760.56,0.00030164,7]
[364645899,1749177044872,-480.0,0.00030164,7]
[364645900,1749177044881,-536.89086172,0.00030164,7]
[364645901,1749177044891,-1063.98,0.00030164,7]
[364645902,1749177044900,-480.0,0.00030164,7]
[364645903,1749177044909,-2385.61,0.00030164,7]
[364645904,1749177044919,-3067.55,0.00030164,7]
[364645905,1749177044928,-480.0,0.00030164,7]
[364645906,1749177044937,-480.0,0.00030164,7]
[364645907,1749177044947,-480.0,0.00030164,7]
[364645908,1749177044956,-507.47220958,0.00030164,7]
[364645909,1749177044965,-480.0,0.00030164,7]
[364645910,1749177044974,-480.0,0.00030164,7]
[364645911,1749177044984,-482.66772293,0.00030164,7]
[364645912,1749177044994,-927.0,0.00030164,7]
[364645913,1749177045003,-1421.02,0.00030164,7]
[364645914,1749177045012,-480.0,0.00030164,7]
[364645915,1749177045021,-318.0,0.00030164,7]
[364645916,1749177045031,-566.2,0.00030164,7]
[364645917,1749177045040,-697.64,0.00030164,7]
[364645918,1749177045049,-480.0,0.00030164,7]
[364645919,1749177045058,-1483.45,0.00030164,7]
[364645920,1749177045068,-566.58403814,0.00030164,7]
[364645921,1749177045077,-581.22,0.00030164,7]
[364645922,1749177045086,-332.49270202,0.00030164,7]
[364645923,1749177045095,-4719.52,0.00030164,7]
[364645924,1749177045105,-661.64,0.00030164,7]
[364645925,1749177045115,-480.0,0.00030164,7]
[364645926,1749177045124,-480.0,0.00030164,7]
[364645927,1749177045133,-480.0,0.00030164,7]
[364645928,1749177045142,-321.10248756,0.00030164,7]
[364645929,1749177045152,-480.0,0.00030164,7]
[364645930,1749177045162,-480.0,0.00030164,7]
[364645931,1749177045171,-629.5,0.00030164,7]
[364645932,1749177045180,-1641.71,0.00030164,7]
[364645933,1749177045190,-427.86038464,0.00030164,7]
[364645934,1749177045199,-480.0,0.00030164,7]
[364645935,1749177045209,-480.0,0.00030164,7]
[364645936,1749177045219,-586.66,0.00030164,7]
[364645937,1749177045228,-628.34,0.00030164,7]
[364645938,1749177045238,-694.35,0.00030164,7]
[364645939,1749177045248,-480.0,0.00030164,7]
[364645940,1749177045258,-480.0,0.00030164,7]
[364645941,1749177045268,-502.88,0.00030164,7]
[364645942,1749177045277,-485.87160847,0.00030164,7]
[364645943,1749177045287,-480.0,0.00030164,7]
[364645944,1749177045297,-511.24179665,0.00030164,7]
[364645945,1749177045307,-856.31,0.00030164,7]
[364645946,1749177045316,-480.0,0.00030164,7]
[364645947,1749177045326,-1438.9,0.00030164,7]
[364645948,1749177045335,-480.0,0.00030164,7]
[364645949,1749177045344,-480.0,0.00030164,7]
[364645950,1749177045354,-481.25249852,0.00030164,5]
[364645951,1749177045363,-755.4,0.00030164,7]
[364645952,1749177045372,-645.87,0.00030164,7]
[364645953,1749177045382,-480.0,0.00030164,7]
[364645954,1749177045391,-480.0,0.00030164,7]
[364645955,1749177045400,-430.76517651,0.00030164,7]
[364645956,1749177045410,-17148.88,0.00030164,7]
[364645957,1749177045419,-480.0,0.00030164,7]
[364645958,1749177045428,-19949.05,0.00030164,7]
[364645959,1749177045437,-1338.67,0.00030164,7]
[364645960,1749177045447,-827.73,0.00030164,7]
[364645961,1749177045457,-493.8040974,0.00030164,7]
[364645962,1749177045466,-500.0,0.00030164,7]
[364645963,1749177045476,-1224.39,0.00030164,7]
[364645964,1749177045486,-500.0,0.00030164,7]
[364645965,1749177045496,-500.0,0.00030164,7]
[364645966,1749177045506,-480.0,0.00030164,7]
[364645967,1749177045515,-480.0,0.00030164,7]
[364645968,1749177045525,-480.0,0.00030164,7]
[364645969,1749177045535,-747.44,0.00030164,7]
[364645970,1749177045544,-497.54,0.00030164,7]
[364645971,1749177045554,-480.0,0.00030164,7]
[364645972,1749177045563,-480.0,0.00030164,7]
[364645973,1749177045573,-420.0,0.00030164,7]
[364645974,1749177045583,-2088.01,0.00030164,7]
[364645975,1749177045594,-509.00706742,0.00030164,7]
[364645976,1749177045604,-2051.63,0.00030164,7]
[364645977,1749177045614,-480.0,0.00030164,7]
[364645978,1749177045624,-1545.06,0.00030164,7]
[364645979,1749177045634,-603.84,0.00030164,7]
[364645980,1749177045644,-480.0,0.00030164,7]
[364645981,1749177045654,-540.31,0.00030164,7]
[364645982,1749177045664,-482.9155512,0.00030164,7]
[364645983,1749177045673,-496.36965865,0.00030164,7]
[364645984,1749177045683,-882.21,0.00030164,7]
[364645986,1749177045693,-674.92,0.00030164,7]
[364645987,1749177045702,-2150.6,0.00030164,7]
[364645988,1749177045716,-1803.72,0.00030164,7]
[364645989,1749177045725,-480.0,0.00030164,7]
[364645990,1749177045735,-480.0,0.00030164,2]
[364645991,1749177045744,-2029.93,0.00030164,7]
[364645992,1749177045756,-962.49,0.00030164,7]
[364645993,1749177045766,-4131.64,0.00030164,7]
[364645994,1749177045776,-480.0,0.00030164,3]